fUSD/lending_fUSD_20240919
["ID","MTS","AMOUNT","RATE_DAILY","PERIOD"]
[338562745,1726735842098,-500.0,0.00014369,2]
[338562746,1726735842108,-1067.15,0.00014369,2]
[338562747,1726735842118,-500.0,0.00014369,2]
[338562748,1726735842128,-500.0,0.00014369,2]
[338562749,1726735842138,-500.0,0.00014369,2]
[338562750,1726735842148,-500.0,0.00014369,2]
[338562751,1726735842158,-500.0,0.00014369,2]
[338562752,1726735842168,-500.0,0.00014369,2]
[338562753,1726735842179,-500.0,0.00014369,2]
[338562754,1726735842190,-500.0,0.00014369,2]
[338562755,1726735842200,-500.0,0.00014369,2]
[338562756,1726735842213,-500.0,0.00014369,2]
[338562758,1726735842224,-500.0,0.00014369,2]
[338562760,1726735842236,-500.0,0.00014369,2]
[338562762,1726735842248,-187.68,0.00014369,2]
[338562764,1726735842259,-500.0,0.00014369,2]
[338562766,1726735842270,-567.09,0.00014369,2]
[338562768,1726735842281,-641.13793045,0.00014369,2]
[338562770,1726735842292,-500.0,0.00014369,2]
[338562773,1726735842303,-500.0,0.00014369,2]
[338562775,1726735842314,-500.0,0.00014369,2]
[338562777,1726735842324,-500.0,0.00014369,2]
[338562779,1726735842334,-500.0,0.00014369,2]
[338562781,1726735842345,-500.0,0.00014369,2]
[338562783,1726735842357,-503.93,0.00014369,2]
[338562785,1726735842368,-500.0,0.00014369,2]
[338562787,1726735842379,-500.0,0.00014369,2]
[338562789,1726735842390,-500.0,0.00014369,2]
[338562791,1726735842400,-2782.04772399,0.00014369,2]
[338562792,1726735842411,-8312.4761695,0.00014369,3]
[338562793,1726735842423,-152.0,0.00014379,3]
[338562794,1726735842434,-9195.40889429,0.0001438,3]
[338562795,1726735842445,-1828.05,0.00014384,2]
[338562796,1726735842457,-8312.4761695,0.000144,3]
[338562797,1726735842468,-1000.0,0.000144,5]
[338562798,1726735842479,-9195.40889429,0.000144,3]
[338562799,1726735842490,-1354.61317114,0.0001441,2]
[338562800,1726735842500,-1028.63264314,0.0001441,2]
[338562801,1726735842511,-500.0,0.00014429,2]
[338562802,1726735842522,-500.0,0.00014429,2]
[338562803,1726735842533,-599.32,0.00014429,2]
[338562804,1726735842544,-501.49,0.00014429,2]
[338562805,1726735842554,-1343.31,0.00014429,2]
[338562806,1726735842565,-842.32,0.00014429,2]
[338562807,1726735842575,-647.62036342,0.00014429,2]
[338562809,1726735842585,-500.0,0.00014429,2]
[338562811,1726735842596,-576.27,0.00014429,2]
[338562813,1726735842608,-500.0,0.00014429,2]
[338562814,1726735842619,-500.0,0.00014429,2]
[338562815,1726735842629,-500.0,0.00014429,2]
[338562816,1726735842641,-500.0,0.00014429,2]
[338562817,1726735842652,-500.0,0.00014429,2]
[338562818,1726735842663,-1000.0,0.00014431,2]
[338562819,1726735842674,-669.25248252,0.00014466,2]
[338562820,1726735842686,-9195.40889429,0.0001448,3]
[338562821,1726735842698,-8312.4761695,0.0001449,3]
[338562822,1726735842710,-170.9928382,0.000145,2]
[338562823,1726735842721,-1000.0,0.000145,5]
[338562824,1726735842732,-9195.40889429,0.000145,3]
[338562825,1726735842743,-500.0,0.00014509,2]
[338562826,1726735842753,-500.0,0.00014509,2]
[338562827,1726735842763,-500.0,0.00014509,2]
[338562828,1726735842772,-500.0,0.00014509,2]
[338562829,1726735842782,-500.0,0.00014509,2]
[338562830,1726735842792,-174.25259358,0.00014509,2]
[338562831,1726735842803,-33249.904678,0.0001451,3]
[338562832,1726735842814,-421.86233158,0.00014511,2]
[338562833,1726735842823,-520.85,0.00014518,2]
[338562834,1726735842835,-275.090867,0.0001452,2]
[338562835,1726735842846,-500.0,0.0001452,2]
[338562836,1726735842858,-500.0,0.0001452,2]
[338562837,1726735842868,-500.0,0.0001452,2]
[338562838,1726735842879,-556.93,0.0001452,2]
[338562839,1726735842890,-500.0,0.0001452,2]
[338562840,1726735842900,-500.0,0.0001452,2]
[338562841,1726735842911,-500.0,0.0001452,2]
[338562842,1726735842921,-500.0,0.0001452,2]
[338562844,1726735842933,-500.0,0.0001452,2]
[338562847,1726735842944,-592.39289289,0.0001452,2]
[338562849,1726735842955,-500.0,0.0001452,2]
[338562851,1726735842966,-500.0,0.0001452,2]
[338562853,1726735842977,-535.93587759,0.0001452,2]
[338562855,1726735842988,-500.0,0.0001452,2]
[338562857,1726735842999,-500.0,0.0001452,2]
[338562860,1726735843010,-500.0,0.0001452,2]
[338562862,1726735843020,-548.32,0.0001452,2]
[338562864,1726735843029,-500.0,0.0001452,2]
[338562866,1726735843039,-500.0,0.0001452,2]
[338562868,1726735843049,-500.0,0.0001452,2]
[338562870,1726735843059,-500.0,0.0001452,2]
[338562872,1726735843069,-535.04,0.0001452,2]
[338562874,1726735843079,-500.0,0.0001452,2]
[338562876,1726735843089,-500.0,0.0001452,2]
[338562878,1726735843100,-500.0,0.0001452,2]
[338562880,1726735843110,-500.0,0.0001452,2]
[338562882,1726735843121,-500.0,0.0001452,2]
[338562885,1726735843132,-551.77,0.0001452,2]
[338562887,1726735843143,-500.0,0.0001452,2]
[338562889,1726735843153,-552.31,0.0001452,2]
[338562891,1726735843164,-500.0,0.0001452,2]
[338562893,1726735843174,-500.0,0.0001452,2]
[338562895,1726735843183,-591.92,0.0001452,2]
[338562897,1726735843193,-2251.31,0.0001452,2]
[338562899,1726735843203,-500.0,0.0001452,2]
[338562901,1726735843213,-500.0,0.0001452,2]
[338562904,1726735843225,-500.0,0.0001452,2]
[338562906,1726735843235,-729.69,0.0001452,2]
[338562908,1726735843246,-7331.83,0.0001452,2]
[338562910,1726735843256,-500.0,0.0001452,2]
[338562912,1726735843268,-500.0,0.0001452,2]
[338562914,1726735843279,-809.9,0.0001452,2]
[338562917,1726735843291,-500.0,0.0001452,2]
[338562919,1726735843302,-500.0,0.0001452,2]
[338562921,1726735843312,-500.0,0.0001452,2]
[338562923,1726735843322,-500.0,0.0001452,2]
[338562925,1726735843332,-1127.23,0.0001452,2]
[338562927,1726735843343,-500.0,0.0001452,2]
[338562928,1726735843358,-162.16915525,0.0001452,2]
[338562929,1726735843368,-500.0,0.0001452,2]
[338562930,1726735843379,-783.26,0.0001452,2]
[338562931,1726735843390,-500.0,0.0001452,2]
[338562933,1726735843400,-500.0,0.0001452,2]
[338562934,1726735843410,-1311.44,0.0001452,2]
[338562935,1726735843420,-625.43114185,0.0001452,2]
[338562936,1726735843430,-1110.52,0.0001452,2]
[338562937,1726735843441,-500.0,0.0001452,2]
[338562938,1726735843451,-500.0,0.0001452,2]
[338562939,1726735843462,-500.0,0.0001452,2]
[338562940,1726735843473,-500.0,0.0001452,2]
[338562941,1726735843483,-500.0,0.0001452,2]
[338562942,1726735843493,-500.0,0.0001452,2]
[338562943,1726735843504,-500.0,0.0001452,2]
[338562944,1726735843515,-500.0,0.0001452,2]
[338562945,1726735843526,-500.0,0.0001452,2]
[338562946,1726735843536,-500.0,0.0001452,2]
[338562947,1726735843546,-500.0,0.0001452,2]
[338562948,1726735843556,-500.0,0.0001452,2]
[338562949,1726735843567,-509.76,0.0001452,2]
[338562950,1726735843577,-500.0,0.0001452,2]
[338562951,1726735843587,-1066.09,0.0001452,2]
[338562952,1726735843597,-500.0,0.0001452,2]
[338562953,1726735843610,-500.0,0.0001452,2]
[338562954,1726735843620,-776.53,0.0001452,2]
[338562955,1726735843630,-500.0,0.0001452,2]
[338562956,1726735843642,-535.24,0.0001452,2]
[338562957,1726735843652,-500.0,0.0001452,2]
[338562958,1726735843662,-500.0,0.0001452,2]
[338562959,1726735843673,-500.0,0.0001452,2]
[338562960,1726735843684,-500.0,0.0001452,2]
[338562961,1726735843694,-500.0,0.0001452,2]
[338562962,1726735843704,-500.0,0.0001452,2]
[338562963,1726735843715,-500.0,0.0001452,2]
[338562964,1726735843726,-500.0,0.0001452,2]
[338562965,1726735843736,-585.4,0.0001452,2]
[338562966,1726735843746,-500.0,0.0001452,2]
[338562967,1726735843755,-500.0,0.0001452,2]
[338562968,1726735843765,-500.0,0.0001452,2]
[338562969,1726735843775,-500.0,0.0001452,2]
[338562970,1726735843785,-500.0,0.0001452,2]
[338562971,1726735843795,-500.0,0.0001452,2]
[338562972,1726735843805,-500.0,0.0001452,2]
[338562973,1726735843815,-1000.0,0.000146,5]
[338562974,1726735843825,-215.0,0.0001461,2]
[338562975,1726735843835,-669.25248252,0.00014611,2]
[338562976,1726735843849,-748.43,0.00014621,2]
[338562977,1726735843859,-500.0,0.00014621,2]
[338562978,1726735843869,-500.0,0.00014621,2]
[338562979,1726735843879,-551.69,0.00014621,2]
[338562980,1726735843889,-500.0,0.00014621,2]
[338562981,1726735843899,-500.0,0.00014621,2]
[338562982,1726735843909,-500.0,0.00014621,2]
[338562983,1726735843920,-1366.49,0.00014621,2]
[338562984,1726735843930,-8312.4761695,0.00014633,3]
[338562985,1726735843941,-604.0,0.00014635,2]
[338562986,1726735843952,-484.73049517,0.00014643,2]
[338562987,1726735843962,-500.0,0.00014643,2]
[338562988,1726735843972,-500.0,0.00014643,2]
[338562989,1726735843982,-500.0,0.00014643,2]
[338562990,1726735843992,-500.0,0.00014643,2]
[338562991,1726735844002,-500.0,0.00014643,2]
[338562992,1726735844013,-500.0,0.00014643,2]
[338562993,1726735844023,-152.72789127,0.00014643,2]
[338562994,1726735844033,-500.0,0.00014643,2]
[338562995,1726735844045,-500.0,0.00014643,2]
[338562996,1726735844055,-500.0,0.00014643,2]
[338562997,1726735844066,-500.0,0.00014643,2]
[338562998,1726735844075,-500.0,0.00014643,2]
[338562999,1726735844086,-500.0,0.00014643,2]
[338563000,1726735844097,-500.0,0.00014643,2]
[338563001,1726735844118,-410.97850847,0.00014643,2]
[338563002,1726735844129,-500.0,0.00014643,2]
[338563003,1726735844139,-500.0,0.00014643,2]
[338563004,1726735844149,-1067.15,0.00014643,2]
[338563005,1726735844159,-500.0,0.00014643,2]
[338563006,1726735844169,-500.0,0.00014643,2]
[338563007,1726735844179,-500.0,0.00014643,2]
[338563008,1726735844190,-500.0,0.00014643,2]
[338563009,1726735844200,-500.0,0.00014643,2]
[338563010,1726735844210,-500.0,0.00014643,2]
[338563011,1726735844220,-433.09652582,0.00014643,2]
[338563012,1726735844231,-471.96319907,0.00014643,2]
[338563013,1726735844242,-500.0,0.00014643,2]
[338563014,1726735844252,-500.0,0.00014643,2]
[338563015,1726735844262,-500.0,0.00014643,2]
[338563016,1726735844272,-574.67996333,0.00014643,2]
[338563017,1726735844283,-500.0,0.00014643,2]
[338563018,1726735844294,-567.09,0.00014643,2]
[338563019,1726735844304,-500.0,0.00014643,2]
[338563020,1726735844314,-500.0,0.00014643,2]
[338563021,1726735844325,-500.0,0.00014643,2]
[338563022,1726735844335,-500.0,0.00014643,2]
[338563023,1726735844346,-500.0,0.00014643,2]
[338563024,1726735844360,-500.0,0.00014643,2]
[338563025,1726735844371,-503.93,0.00014643,2]
[338563026,1726735844381,-500.0,0.00014643,2]
[338563027,1726735844391,-500.0,0.00014643,2]
[338563028,1726735844401,-500.0,0.00014643,2]
[338563029,1726735844411,-215.0,0.0001468,2]
[338563030,1726735844422,-8312.4761695,0.0001469,3]
[338563031,1726735844432,-158.10949927,0.00014692,2]
[338563032,1726735844443,-1000.0,0.000147,5]
[338563033,1726735844453,-500.0,0.00014703,2]
[338563034,1726735844463,-500.0,0.00014703,2]
[338563035,1726735844473,-599.32,0.00014703,2]
[338563036,1726735844484,-501.49,0.00014703,2]
[338563037,1726735844493,-1343.31,0.00014703,2]
[338563038,1726735844504,-842.32,0.00014703,2]
[338563039,1726735844513,-500.0,0.00014703,2]
[338563040,1726735844523,-576.27,0.00014703,2]
[338563041,1726735844533,-500.0,0.00014703,2]
[338563042,1726735844543,-500.0,0.00014703,2]
[338563043,1726735844552,-306.16600702,0.00014703,2]
[338563044,1726735844562,-500.0,0.00014703,2]
[338563045,1726735844572,-500.0,0.00014703,2]
[338563046,1726735844582,-150.0,0.00014707,120]
[338563047,1726735844592,-500.0,0.00014733,2]
[338563048,1726735844603,-200.0,0.00014733,2]
[338563049,1726735844613,-215.0,0.0001475,2]
[338563050,1726735844623,-669.25248252,0.00014755,2]
[338563051,1726735844633,-33249.904678,0.00014784,3]
[338563052,1726735844646,-520.85,0.00014792,2]
[338563053,1726735844656,-7472.6435634,0.00014794,2]
[338563054,1726735844666,-275.090867,0.00014794,2]
[338563055,1726735844676,-500.0,0.00014794,2]
[338563056,1726735844687,-500.0,0.00014794,2]
[338563057,1726735844697,-500.0,0.00014794,2]
[338563058,1726735844707,-556.93,0.00014794,2]
[338563059,1726735844718,-500.0,0.00014794,2]
[338563060,1726735844728,-500.0,0.00014794,2]
[338563061,1726735844738,-500.0,0.00014794,2]
[338563062,1726735844748,-500.0,0.00014794,2]
[338563063,1726735844757,-500.0,0.00014794,2]
[338563064,1726735844767,-500.0,0.00014794,2]
[338563065,1726735844777,-500.0,0.00014794,2]
[338563066,1726735844787,-500.0,0.00014794,2]
[338563067,1726735844797,-500.0,0.00014794,2]
[338563068,1726735844807,-500.0,0.00014794,2]
[338563069,1726735844817,-548.32,0.00014794,2]
[338563070,1726735844827,-500.0,0.00014794,2]
[338563071,1726735844836,-500.0,0.00014794,2]
[338563072,1726735844846,-500.0,0.00014794,2]
[338563073,1726735844860,-500.0,0.00014794,2]
[338563074,1726735844870,-535.04,0.00014794,2]
[338563075,1726735844879,-500.0,0.00014794,2]
[338563076,1726735844889,-300.01464177,0.00014794,2]
[338563077,1726735844900,-500.0,0.00014794,2]
[338563078,1726735844910,-500.0,0.00014794,2]
[338563079,1726735844920,-500.0,0.00014794,2]
[338563080,1726735844930,-551.77,0.00014794,2]
[338563081,1726735844940,-500.0,0.00014794,2]
[338563082,1726735844951,-552.31,0.00014794,2]
[338563083,1726735844962,-500.0,0.00014794,2]
[338563084,1726735844972,-500.0,0.00014794,2]
[338563085,1726735844982,-591.92,0.00014794,2]
[338563086,1726735844992,-2251.31,0.00014794,2]
[338563087,1726735845003,-500.0,0.00014794,2]
[338563088,1726735845013,-500.0,0.00014794,2]
[338563089,1726735845023,-500.0,0.00014794,2]
[338563090,1726735845034,-729.69,0.00014794,2]
[338563091,1726735845044,-7331.83,0.00014794,2]
[338563092,1726735845054,-500.0,0.00014794,2]
[338563093,1726735845065,-500.0,0.00014794,2]
[338563094,1726735845075,-809.9,0.00014794,2]
[338563096,1726735845553,-500.0,0.00014794,2]
[338563097,1726735845564,-500.0,0.00014794,2]
[338563098,1726735845574,-500.0,0.00014794,2]
[338563099,1726735845583,-500.0,0.00014794,2]
[338563100,1726735845593,-1127.23,0.00014794,2]
[338563101,1726735845604,-500.0,0.00014794,2]
[338563102,1726735845613,-500.0,0.00014794,2]
[338563103,1726735845622,-783.26,0.00014794,2]
[338563104,1726735845632,-500.0,0.00014794,2]
[338563105,1726735845644,-500.0,0.00014794,2]
[338563106,1726735845655,-1311.44,0.00014794,2]
[338563107,1726735845665,-1110.52,0.00014794,2]
[338563108,1726735845674,-500.0,0.00014794,2]
[338563109,1726735845686,-500.0,0.00014794,2]
[338563110,1726735845697,-500.0,0.00014794,2]
[338563111,1726735845707,-500.0,0.00014794,2]
[338563112,1726735845718,-500.0,0.00014794,2]
[338563113,1726735845727,-500.0,0.00014794,2]
[338563114,1726735845737,-536.23,0.00014794,2]
[338563115,1726735845747,-500.0,0.00014794,2]
[338563116,1726735845756,-500.0,0.00014794,2]
[338563117,1726735845766,-500.0,0.00014794,2]
[338563118,1726735845775,-500.0,0.00014794,2]
[338563119,1726735845784,-500.0,0.00014794,2]
[338563120,1726735845794,-509.76,0.00014794,2]
[338563121,1726735845803,-500.0,0.00014794,2]
[338563122,1726735845812,-1066.09,0.00014794,2]
[338563123,1726735845821,-500.0,0.00014794,2]
[338563124,1726735845830,-500.0,0.00014794,2]
[338563125,1726735845840,-776.53,0.00014794,2]
[338563126,1726735845849,-500.0,0.00014794,2]
[338563127,1726735845861,-535.24,0.00014794,2]
[338563128,1726735845870,-500.0,0.00014794,2]
[338563129,1726735845879,-500.0,0.00014794,2]
[338563130,1726735845889,-500.0,0.00014794,2]
[338563131,1726735845898,-500.0,0.00014794,2]
[338563132,1726735845908,-500.0,0.00014794,2]
[338563133,1726735845917,-500.0,0.00014794,2]
[338563134,1726735845926,-500.0,0.00014794,2]
[338563135,1726735845935,-500.0,0.00014794,2]
[338563136,1726735845944,-585.4,0.00014794,2]
[338563137,1726735845954,-500.0,0.00014794,2]
[338563138,1726735845963,-500.0,0.00014794,2]
[338563139,1726735845972,-500.0,0.00014794,2]
[338563140,1726735845982,-500.0,0.00014794,2]
[338563141,1726735845991,-500.0,0.00014794,2]
[338563142,1726735846000,-500.0,0.00014794,2]
[338563143,1726735846010,-500.0,0.00014794,2]
[338563144,1726735846019,-3000.0,0.000148,2]
[338563145,1726735846029,-1900.0,0.000148,5]
[338563146,1726735846038,-215.0,0.0001482,2]
[338563147,1726735846047,-500.0,0.00014873,2]
[338563148,1726735846057,-215.0,0.0001489,2]
[338563149,1726735846066,-41562.3808475,0.0001489,3]
[338563150,1726735846075,-748.43,0.00014895,2]
[338563151,1726735846085,-500.0,0.00014895,2]
[338563152,1726735846094,-500.0,0.00014895,2]
[338563153,1726735846104,-551.69,0.00014895,2]
[338563154,1726735846113,-500.0,0.00014895,2]
[338563155,1726735846123,-500.0,0.00014895,2]
[338563156,1726735846132,-500.0,0.00014895,2]
[338563157,1726735846142,-1366.49,0.00014895,2]
[338563158,1726735846151,-324.74344666,0.000149,2]
[338563159,1726735846161,-721.18273509,0.000149,2]
[338563160,1726735846170,-721.18273509,0.000149,2]
[338563161,1726735846180,-721.18273509,0.000149,2]
[338563162,1726735846190,-721.18273509,0.000149,2]
[338563163,1726735846199,-721.18273509,0.000149,2]
[338563164,1726735846208,-721.18273509,0.000149,2]
[338563165,1726735846218,-721.18273509,0.000149,2]
[338563166,1726735846227,-721.18273509,0.000149,2]
[338563167,1726735846237,-721.18273509,0.000149,2]
[338563168,1726735846245,-721.18273509,0.000149,2]
[338563169,1726735846255,-721.18273509,0.000149,2]
[338563170,1726735846264,-721.18273509,0.000149,2]
[338563171,1726735846273,-721.18273509,0.000149,2]
[338563172,1726735846283,-721.18273509,0.000149,2]
[338563173,1726735846292,-721.18273509,0.000149,2]
[338563174,1726735846302,-721.18273509,0.000149,2]
[338563175,1726735846311,-721.18273509,0.000149,2]
[338563176,1726735846320,-721.18273509,0.000149,2]
[338563177,1726735846330,-721.18273509,0.000149,2]
[338563178,1726735846339,-675.83585876,0.000149,2]
[338563179,1726735846348,-721.68,0.000149,2]
[338563180,1726735846358,-2884.80594034,0.000149,2]
[338563181,1726735846367,-2884.80594034,0.000149,2]
[338563182,1726735846376,-2884.80594034,0.000149,2]
[338563183,1726735846386,-2884.80594034,0.000149,2]
[338563184,1726735846395,-2884.80594034,0.000149,2]
[338563185,1726735846405,-2884.80594034,0.000149,2]
[338563186,1726735846414,-2884.80594034,0.000149,2]
[338563187,1726735846423,-2884.80594034,0.000149,2]
[338563188,1726735846432,-2884.80594034,0.000149,2]
[338563189,1726735846441,-2884.80594034,0.000149,2]
[338563190,1726735846451,-2884.80594034,0.000149,2]
[338563191,1726735846460,-2884.80594034,0.000149,2]
[338563192,1726735846470,-2884.80594034,0.000149,2]
[338563193,1726735846479,-2884.80594034,0.000149,2]
[338563194,1726735846488,-2884.80594034,0.000149,2]
[338563195,1726735846498,-2884.80594034,0.000149,2]
[338563196,1726735846507,-2884.80594034,0.000149,2]
[338563197,1726735846517,-2884.80594034,0.000149,2]
[338563198,1726735846526,-2884.80594034,0.000149,2]
[338563199,1726735846536,-2885.3,0.000149,2]
[338563200,1726735846545,-7223.59421181,0.000149,2]
[338563201,1726735846555,-1500.42025724,0.000149,2]
[338563202,1726735846564,-669.25248252,0.000149,2]
[338563203,1726735846574,-8312.4761695,0.00014907,3]
[338563204,1726735846583,-500.0,0.00014917,2]
[338563205,1726735846592,-500.0,0.00014917,2]
[338563206,1726735846602,-500.0,0.00014917,2]
[338563207,1726735846611,-500.0,0.00014917,2]
[338563208,1726735846620,-500.0,0.00014917,2]
[338563209,1726735846630,-500.0,0.00014917,2]
[338563210,1726735846640,-500.0,0.00014917,2]
[338563211,1726735846653,-500.0,0.00014917,2]
[338563212,1726735846662,-500.0,0.00014917,2]
[338563213,1726735846672,-500.0,0.00014917,2]
[338563214,1726735846682,-500.0,0.00014917,2]
[338563215,1726735846691,-490.27808015,0.00014917,2]
[338563216,1726735846701,-500.0,0.00014917,2]
[338563218,1726735846710,-500.0,0.00014917,2]
[338563219,1726735846720,-382.84222739,0.00014917,2]
[338563220,1726735846729,-1067.15,0.00014917,2]
[338563221,1726735846739,-500.0,0.00014917,2]
[338563222,1726735846748,-500.0,0.00014917,2]
[338563223,1726735846758,-500.0,0.00014917,2]
[338563224,1726735846767,-500.0,0.00014917,2]
[338563225,1726735846776,-500.0,0.00014917,2]
[338563226,1726735846785,-500.0,0.00014917,2]
[338563227,1726735846795,-500.0,0.00014917,2]
[338563228,1726735846804,-500.0,0.00014917,2]
[338563229,1726735846814,-500.0,0.00014917,2]
[338563230,1726735846823,-567.09,0.00014917,2]
[338563231,1726735846832,-500.0,0.00014917,2]
[338563232,1726735846842,-500.0,0.00014917,2]
[338563233,1726735846853,-500.0,0.00014917,2]
[338563234,1726735846863,-500.0,0.00014917,2]
[338563235,1726735846872,-500.0,0.00014917,2]
[338563236,1726735846882,-500.0,0.00014917,2]
[338563237,1726735846891,-503.93,0.00014917,2]
[338563238,1726735846900,-500.0,0.00014917,2]
[338563239,1726735846909,-500.0,0.00014917,2]
[338563240,1726735846918,-500.0,0.00014917,2]
[338563241,1726735846928,-8312.4761695,0.0001495,3]
[338563242,1726735846937,-215.0,0.0001496,2]
[338563243,1726735846946,-207.0,0.0001496,2]
[338563244,1726735846955,-201.0,0.0001496,2]
[338563245,1726735846965,-202.98639003,0.00014973,2]
[338563246,1726735846975,-500.0,0.00014977,2]
[338563247,1726735846984,-500.0,0.00014977,2]
[338563248,1726735846993,-599.32,0.00014977,2]
[338563249,1726735847003,-501.49,0.00014977,2]
[338563250,1726735847012,-1343.31,0.00014977,2]
[338563251,1726735847022,-842.32,0.00014977,2]
[338563252,1726735847031,-500.0,0.00014977,2]
[338563253,1726735847041,-576.27,0.00014977,2]
[338563254,1726735847050,-500.0,0.00014977,2]
[338563255,1726735847060,-500.0,0.00014977,2]
[338563256,1726735847069,-500.0,0.00014977,2]
[338563257,1726735847078,-500.0,0.00014977,2]
[338563258,1726735847089,-24937.4285085,0.0001499,3]
[338563259,1726735847098,-158.713715,0.0001499,3]
[338563260,1726735847111,-152.0,0.00014992,4]
[338563261,1726735847121,-82732.42400326,0.00015,2]
[338563262,1726735847131,-2795285.45638664,0.00015,2]
[338563263,1726735847140,-535991.12745406,0.00015,2]
[338563264,1726735847342,-7596.73680442,0.00015,2]
[338563265,1726735847356,-30577.686,0.00015,2]
[338563267,1726735847473,-277.91000002,0.00014019,2]
[338563269,1726735848280,-250.0,0.00013119,2]
[338563270,1726735848289,-123.14592459,0.00014019,2]
[338563271,1726735848299,-500.0,0.00014155,2]
[338563272,1726735848309,-500.0,0.00014429,2]
[338563273,1726735848318,-269.23195676,0.00014703,2]
[338563274,1726735848348,-150.0,0.00014039,2]
[338563275,1726735848360,-230.76804324,0.00014703,2]
[338563276,1726735848370,-589.01222751,0.00014977,2]
[338563277,1726735848379,-18106.48466434,0.00015,2]
[338563278,1726735848391,-6214.208,0.00015,2]
[338563279,1726735848404,-959.85057508,0.00015,2]
[338563280,1726735848416,-3111.74618639,0.00015,2]
[338563283,1726735874840,357.02,0.00011784,2]
[338563284,1726735878281,500.0,0.00011264,2]
[338563285,1726735879889,500.0,0.00012634,2]
[338563286,1726736077327,532.83,0.00013918,30]
[338563287,1726736222098,2000.0,0.00012391,2]
[338563288,1726736224505,237.61,0.00012386,2]
[338563290,1726736284722,200.0,0.00012374,2]
[338563291,1726736306917,702.37,0.00012473,2]
[338563292,1726736333093,3920.27,0.00012383,2]
[338563293,1726736345666,310.25,0.00012383,2]
[338563294,1726736356636,250.0,0.00012383,2]
[338563295,1726736364171,250.0,0.00012383,2]
[338563296,1726736383411,339.16,0.00010465,2]
[338563297,1726736383758,339.16,0.00012729,2]
[338563298,1726736384508,1900.0,8.972e-05,2]
[338563299,1726736386320,1900.0,0.00010342,2]
[338563300,1726736387895,1900.0,0.00011712,2]
[338563301,1726736389109,500.0,0.00011164,2]
[338563302,1726736390728,500.0,0.00012534,2]
[338563303,1726736391435,157.73,0.00010959,2]
[338563304,1726736450873,331.01,0.00012371,2]
[338563305,1726736508989,1388.11,0.00012371,2]
[338563306,1726736553556,581.97,0.0001236,2]
[338563307,1726736601319,506.18,0.00013918,30]
[338563308,1726736629168,500.0,0.00011164,2]
[338563309,1726736632713,500.0,0.00011164,2]
[338563310,1726736634332,500.0,0.00012534,2]
[338563311,1726736646249,240.17,0.00012602,2]
[338563312,1726736686381,1074.57,0.00012594,2]
[338563313,1726736709742,1000.0,0.00012615,2]
[338563314,1726736787284,1350.0,0.00012639,2]
[338563315,1726736807158,798.96,0.00012639,2]
[338563366,1726736906379,205.4,0.00012598,2]
[338563370,1726736931281,250.0,0.00012598,2]
[338563371,1726737001040,305.24,0.00010751,2]